bitfinex-derivatives/quotes_BTCF0:USTF0_20250309
["timestamp","ask_amount","ask_price","bid_price","bid_amount"]
[1741537625676,0.4808849,83290.0,83287.0,0.1200879]
[1741537625884,0.1200955,83282.0,83281.0,0.0001802]
[1741537626181,0.5784155,83282.0,83281.0,0.0001802]
[1741537627077,0.7609155,83282.0,83281.0,0.0001802]
[1741537627877,0.1201287,83259.0,83257.0,0.3608]
[1741537628279,0.1825,83261.0,83249.0,0.09748]
[1741537628469,0.1825,83261.0,83232.0,0.3608]
[1741537628470,0.1201489,83245.0,83244.0,0.3608]
[1741537629075,0.1201489,83245.0,83244.0,0.4809504]
[1741537629879,0.27618,83250.0,83244.0,0.4809504]
[1741537630072,0.09748,83265.0,83252.0,0.1201388]
[1741537630271,0.09748,83265.0,83252.0,0.4809388]
[1741537630478,0.09748,83265.0,83252.0,0.5784188]
[1741537630679,0.09748,83265.0,83252.0,0.6739188]
[1741537631184,0.0914,83272.0,83252.0,0.6739188]
[1741537631376,0.0914,83272.0,83252.0,0.3131188]
[1741537631377,0.1203176,83253.0,83252.0,0.3131188]
[1741537631576,0.1201446,83248.0,83247.0,0.09748]
[1741537631774,0.1201489,83245.0,83244.0,0.3608]
[1741537632182,0.1201489,83245.0,83244.0,0.4809504]
[1741537632376,0.1201489,83245.0,83244.0,0.3608]
[1741537632582,0.1201489,83245.0,83244.0,0.4809504]
[1741537632786,0.0600703,83251.0,83244.0,0.3608]
[1741537632987,0.1802219,83249.0,83248.0,0.1201417]
[1741537633179,0.1201489,83245.0,83244.0,0.5410238]
[1741537633680,0.1203176,83253.0,83252.0,0.1201388]
[1741537633880,0.0001802,83253.0,83252.0,0.1201388]
[1741537634286,0.1203176,83253.0,83252.0,0.1201388]
[1741537634581,0.1201489,83245.0,83244.0,0.3608]
[1741537634789,0.1201547,83241.0,83230.0,0.4572]
[1741537634984,0.12616803,83241.0,83237.0,0.0962]
[1741537635282,0.00601333,83241.0,83240.0,0.12195813]
[1741537635678,0.19461333,83241.0,83240.0,0.12195813]
[1741537635988,0.31476803,83241.0,83240.0,0.12195813]
[1741537636581,0.41224803,83241.0,83240.0,0.00180203]
[1741537636776,0.1201605,83237.0,83236.0,0.0001802]
[1741537637082,0.00601333,83237.0,83236.0,0.1203421]
[1741537637383,0.00601362,83237.0,83236.0,0.2165421]
[1741537637581,0.00601362,83237.0,83236.0,0.3042421]
[1741537637982,0.12617412,83237.0,83236.0,0.0963802]
[1741537638189,0.00601362,83237.0,83236.0,0.2165421]
[1741537638982,0.22365412,83237.0,83236.0,0.0001802]
[1741537639180,0.22365389,83237.0,83236.0,0.0001802]
[1741537639387,0.58445389,83237.0,83236.0,0.0001802]
[1741537639784,0.67675389,83237.0,83236.0,0.0001802]
[1741537641083,0.67675389,83237.0,83236.0,0.00137858]
[1741537642887,0.55659339,83237.0,83207.0,0.0601018]
[1741537643096,0.55659339,83237.0,83201.0,0.3608]
[1741537643097,0.1202017,83209.0,83208.0,0.0882]
[1741537643287,0.00601339,83209.0,83208.0,0.0882]
[1741537643486,0.12621429,83209.0,83208.0,0.0882]
[1741537643685,0.00601339,83209.0,83208.0,0.2084023]
[1741537644096,0.09851339,83209.0,83208.0,0.2084023]
[1741537644487,0.00601339,83209.0,83208.0,0.2084023]
[1741537644689,0.00601339,83209.0,83208.0,0.5692023]
[1741537644888,0.00601339,83209.0,83208.0,0.6666823]
[1741537645096,0.0001802,83217.0,83208.0,0.69648]
[1741537645398,0.0001802,83217.0,83216.0,0.4809908]
[1741537645591,0.0001802,83217.0,83216.0,0.5784708]
[1741537645592,0.1203695,83217.0,83216.0,0.5784708]
[1741537645906,0.1201994,83210.0,83209.0,0.0955]
[1741537646091,0.0600977,83213.0,83212.0,0.1201966]
[1741537646488,0.1201994,83210.0,83209.0,0.1901]
[1741537646888,0.1201994,83210.0,83209.0,0.3103009]
[1741537647491,0.1201994,83210.0,83209.0,0.0946]
[1741537647700,0.1202009,83209.0,83208.0,0.3608]
[1741537647897,0.2092009,83209.0,83208.0,0.3608]
[1741537648201,0.1202124,83201.0,83200.0,0.1001802]
[1741537648998,0.2142124,83201.0,83200.0,0.1001802]
[1741537649196,0.3032124,83201.0,83200.0,0.03249492]
[1741537649392,0.1202298,83189.0,83188.0,0.3608]
[1741537649598,0.2177098,83189.0,83188.0,0.3608]
[1741537649792,0.09748,83189.0,83188.0,0.3608]
[1741537650096,0.1023406,83189.0,83181.0,0.3608]
[1741537650296,0.1817,83188.0,83187.0,0.1202327]
[1741537650497,0.1865606,83188.0,83187.0,0.1202327]
[1741537650892,0.3067918,83188.0,83187.0,0.1202327]
[1741537651092,0.1865606,83188.0,83187.0,0.1202327]
[1741537651598,0.1865606,83188.0,83181.0,0.3608]
[1741537651794,0.1202394,83183.0,83181.0,0.4810402]
[1741537651995,0.00018031,83193.0,83181.0,0.3608]
[1741537652186,0.00018031,83193.0,83182.0,0.120239]
[1741537652187,0.1202384,83184.0,83182.0,0.120239]
[1741537652392,0.09748,83183.0,83182.0,0.1202399]
[1741537652590,0.2177185,83183.0,83182.0,0.0953]
[1741537652799,0.1202447,83179.0,83176.0,0.2404957]
[1741537652999,0.1202471,83177.0,83176.0,0.2093477]
[1741537653592,0.09748,83183.0,83182.0,0.1202399]
[1741537653799,0.09748,83183.0,83180.0,0.0601208]
[1741537653800,0.1202414,83181.0,83180.0,0.0601208]
[1741537654098,0.1202414,83181.0,83169.0,0.060129]
[1741537654099,0.0601256,83175.0,83165.0,0.0887]
[1741537654299,0.1202529,83173.0,83170.0,0.0891]
[1741537654493,0.1202529,83173.0,83156.0,0.4810768]
[1741537654797,0.1202529,83173.0,83163.0,0.3035667]
[1741537654991,0.1202529,83173.0,83163.0,0.1833]
[1741537655190,0.12627128,83173.0,83163.0,0.1833]
[1741537655593,0.1202717,83160.0,83159.0,0.00180373]
[1741537655789,0.12629008,83160.0,83159.0,0.00180373]
[1741537655995,0.12629008,83160.0,83159.0,0.00033918]
[1741537656198,0.1202862,83150.0,83149.0,0.1863]
[1741537656496,0.00601976,83150.0,83149.0,0.1863]
[1741537656693,0.00601976,83150.0,83149.0,0.3065876]
[1741537657094,0.01354411,83150.0,83149.0,0.3065876]
[1741537657294,0.01841864,83150.0,83149.0,0.3065876]
[1741537657900,0.13870484,83150.0,83149.0,0.1863]
[1741537658104,0.13870484,83150.0,83149.0,0.13362825]
[1741537658308,0.01841864,83150.0,83149.0,0.25391585]
[1741537658697,0.13870484,83150.0,83149.0,0.13362825]
[1741537658897,0.01841864,83150.0,83149.0,0.13362825]
[1741537659104,0.13118049,83150.0,83149.0,0.13362825]
[1741537659399,0.01089429,83150.0,83149.0,0.25391585]
[1741537659905,0.13118049,83150.0,83149.0,0.13362825]
[1741537660102,0.13118049,83150.0,83149.0,0.0905]
[1741537660498,0.01089414,83150.0,83149.0,0.2107876]
[1741537660807,0.09770031,83168.0,83167.0,0.1202616]
[1741537660999,0.00018031,83168.0,83167.0,0.4810616]
[1741537661599,0.01128293,83185.0,83184.0,0.120237]
[1741537661901,0.17845102,83186.0,83185.0,0.1202356]
[1741537662300,0.09752,83196.0,83195.0,0.1202211]
[1741537662494,0.28331916,83197.0,83196.0,0.1202197]
[1741537662700,0.28331916,83197.0,83196.0,0.2098197]
[1741537662900,0.28331916,83197.0,83196.0,0.6579197]
[1741537664295,0.40353736,83197.0,83196.0,0.5377]
[1741537664500,0.40353736,83197.0,83196.0,0.1769]
[1741537664802,0.28331916,83197.0,83196.0,0.2971197]
[1741537665004,0.00018031,83205.0,83196.0,0.78522]
[1741537665197,0.21176,83219.0,83218.0,0.1201879]
[1741537665398,0.3319464,83219.0,83218.0,0.1201879]
[1741537666002,0.21176,83219.0,83218.0,0.1201879]
[1741537666406,0.1201807,83225.0,83224.0,0.1201778]
[1741537666601,0.1201807,83225.0,83218.0,0.1799]
[1741537666602,0.1201864,83219.0,83218.0,0.1799]
[1741537666798,0.4208889,83225.0,83224.0,0.1201792]
[1741537666998,0.30764324,83226.0,83224.0,0.08258559]
[1741537667209,0.30764324,83226.0,83225.0,0.1201778]
[1741537667510,0.30764324,83226.0,83225.0,0.3000778]
[1741537667711,0.0600889,83225.0,83211.0,0.0919]
[1741537668007,0.1201908,83216.0,83212.0,0.088]
[1741537668211,0.1201908,83216.0,83210.0,0.00018031]
[1741537668504,0.120198,83211.0,83210.0,0.12037971]
[1741537668706,0.0600964,83215.0,83210.0,0.12037971]
[1741537668707,0.09748,83218.0,83216.0,0.1201893]
[1741537668903,0.21334324,83226.0,83224.0,0.1201792]
[1741537669108,0.21334324,83226.0,83225.0,0.3044778]
[1741537669408,0.33351954,83226.0,83225.0,0.1843]
[1741537669611,0.42371954,83226.0,83225.0,0.0894]
[1741537669812,0.30354324,83226.0,83225.0,0.0894]
[1741537670114,0.21334324,83226.0,83225.0,0.2095778]
[1741537670411,0.41682019,83248.0,83225.0,0.5247578]
[1741537670615,0.0884,83247.0,83236.0,0.4809619]
[1741537671209,0.21364385,83240.0,83239.0,0.1802357]
[1741537671511,0.21965671,83240.0,83239.0,0.2777157]
[1741537671899,0.21965671,83240.0,83239.0,0.09748]
[1741537672109,0.1201619,83236.0,83235.0,0.0894]
[1741537672316,0.00601286,83236.0,83235.0,0.0894]
[1741537672516,0.12617476,83236.0,83235.0,0.0894]
[1741537672909,0.12617476,83236.0,83235.0,0.2095633]
[1741537673110,0.12617476,83236.0,83235.0,0.0894]
[1741537674014,0.00601286,83236.0,83235.0,0.2095633]
[1741537674513,0.12617476,83236.0,83235.0,0.0894]
[1741537674713,0.00601286,83236.0,83235.0,0.0894]
[1741537674903,0.00601286,83236.0,83235.0,0.2095633]
[1741537675802,0.3608,83242.0,83240.0,0.1201561]
[1741537676001,0.00601318,83241.0,83240.0,0.1201561]
[1741537676401,0.00601318,83241.0,83240.0,0.5783961]
[1741537677712,0.1201509,83244.0,83243.0,0.1201518]
[1741537677908,0.12616363,83244.0,83243.0,0.1201518]
[1741537678108,0.00601273,83244.0,83243.0,0.1201518]
[1741537679909,0.00601245,83244.0,83242.0,0.0931]
[1741537680113,0.00601245,83243.0,83242.0,0.2132532]
[1741537680314,0.0001802,83248.0,83247.0,0.120146]
[1741537680514,0.1201363,83254.0,83252.0,0.1201388]
[1741537680714,0.00601209,83253.0,83252.0,0.1201388]
[1741537681219,0.12614949,83253.0,83252.0,0.1201388]
[1741537681710,0.1261496,83253.0,83252.0,0.1201388]
[1741537682221,0.0060122,83253.0,83252.0,0.1201388]
[1741537682420,0.1261496,83253.0,83252.0,0.1201388]
[1741537682616,0.1201446,83248.0,83247.0,0.3608]
[1741537682815,0.1261568,83248.0,83247.0,0.120146]
[1741537683114,0.1201446,83248.0,83247.0,0.120146]
[1741537683324,0.1261571,83248.0,83247.0,0.120146]
[1741537683618,0.31762056,83248.0,83247.0,0.0825663]
[1741537684220,0.3128571,83248.0,83247.0,0.0825663]
[1741537684420,0.5535125,83248.0,83220.0,0.19592252]
[1741537684715,0.0600771,83242.0,83237.0,0.0600799]
[1741537684919,0.0600771,83242.0,83231.0,0.0001802]
[1741537684920,0.1927125,83241.0,83231.0,0.0602641]
[1741537685119,0.1802481,83235.0,83234.0,0.1201602]
[1741537685321,0.18626164,83235.0,83234.0,0.1201602]
[1741537685512,0.00601354,83235.0,83234.0,0.1201602]
[1741537687028,4e-08,83235.0,83234.0,0.1201602]
[1741537687923,4e-08,83235.0,83234.0,0.3378602]
[1741537688128,0.12016334,83235.0,83234.0,0.3378648]
[1741537688313,0.1201633,83235.0,83234.0,0.3378648]
[1741537688518,0.1793,83236.0,83234.0,0.3378648]
[1741537688823,0.1793,83236.0,83235.0,0.1201633]
[1741537689126,0.09744,83249.0,83234.0,0.2177]
[1741537689316,0.09744,83255.0,83242.0,0.1201532]
[1741537689520,0.0917,83254.0,83242.0,0.1201532]
[1741537689823,0.120332,83243.0,83242.0,0.1201532]
[1741537690231,0.0001802,83243.0,83242.0,0.1201532]
[1741537690526,0.2159359,83254.0,83253.0,0.1201374]
[1741537690827,0.3116359,83254.0,83253.0,0.1201374]
[1741537691415,0.1201518,83243.0,83242.0,0.00064]
[1741537691619,0.0600739,83246.0,83231.0,0.0982602]
[1741537691825,0.1201677,83232.0,83231.0,0.0001802]
[1741537692423,0.4809677,83232.0,83231.0,0.0001802]
[1741537692626,0.3116677,83232.0,83231.0,0.0001802]
[1741537693123,0.3116677,83232.0,83231.0,0.1203493]
[1741537693423,0.1915,83232.0,83231.0,0.1203493]
[1741537693622,0.1915,83232.0,83231.0,0.1750622]
[1741537693921,0.2176005,83237.0,83236.0,0.1201619]
[1741537694118,0.1757,83238.0,83237.0,0.1201605]
[1741537694325,0.1757,83238.0,83237.0,0.2124605]
[1741537694927,0.1757,83238.0,83237.0,0.3058605]
[1741537695125,0.09744,83246.0,83239.0,0.1201576]
[1741537695519,0.1757,83245.0,83239.0,0.1201576]
[1741537695729,0.120156,83241.0,83239.0,0.1201576]
[1741537696230,0.1203363,83240.0,83237.0,0.1857]
[1741537696434,0.120159,83238.0,83237.0,0.3058605]
[1741537696626,0.120159,83238.0,83237.0,0.1857]
[1741537696827,0.207159,83238.0,83237.0,0.3058605]
[1741537697334,0.567959,83238.0,83237.0,0.3058605]
[1741537697525,0.207159,83238.0,83237.0,0.3058605]
[1741537697725,0.087,83238.0,83237.0,0.3058605]
[1741537697922,0.0001802,83240.0,83237.0,0.3058605]
[1741537697923,0.0001802,83240.0,83239.0,0.1201576]
[1741537698738,0.1203363,83240.0,83239.0,0.1201576]
[1741537699126,0.1201633,83235.0,83234.0,0.36144]
[1741537699325,0.1201633,83235.0,83234.0,0.3608]
[1741537699727,0.2072633,83235.0,83234.0,0.3608]
[1741537699922,0.2988633,83235.0,83234.0,0.3608]
[1741537701523,0.1787,83235.0,83234.0,0.3608]
[1741537701828,0.0001802,83240.0,83239.0,0.1201576]
[1741537702735,0.0891,83255.0,83254.0,0.1201359]
[1741537702932,0.1201374,83253.0,83252.0,0.1802059]
[1741537703329,0.0891,83255.0,83252.0,0.1802059]
[1741537703529,0.0881,83254.0,83253.0,0.3065374]
[1741537704036,0.2082359,83254.0,83253.0,0.3065374]
[1741537704235,0.2973359,83254.0,83253.0,0.3065374]
[1741537704624,0.28155115,83257.0,83256.0,0.120133]
[1741537704930,0.24979569,83257.0,83256.0,0.120133]
[1741537705336,0.1201359,83255.0,83254.0,0.1201355]
[1741537705527,0.36992809,83257.0,83256.0,0.120133]
[1741537705724,0.24979569,83257.0,83256.0,0.120133]
[1741537706134,0.1895,83261.0,83256.0,0.120133]
[1741537706135,0.1201273,83260.0,83259.0,0.1201287]
[1741537706330,0.1895,83261.0,83260.0,0.1201273]
[1741537706834,0.0001802,83262.0,83261.0,0.1201258]
[1741537707233,0.0001802,83262.0,83261.0,0.4809258]
[1741537707432,0.1203046,83262.0,83261.0,0.1201258]
[1741537707829,0.1801987,83258.0,83257.0,0.1801956]
[1741537708233,0.0001802,83262.0,83253.0,0.0974]
[1741537708433,0.0001802,83262.0,83261.0,0.1201258]
[1741537708732,0.0001802,83262.0,83261.0,0.2175258]
[1741537708932,0.64578315,83284.0,83261.0,0.4651]
[1741537708933,0.31673861,83284.0,83261.0,0.4651]
[1741537709139,0.28498315,83284.0,83283.0,0.4808941]
[1741537709539,0.40507575,83284.0,83283.0,0.4808941]
[1741537709735,0.28498315,83284.0,83283.0,0.4808941]
[1741537710136,0.43566958,83289.0,83283.0,0.5782941]
[1741537710340,0.30786946,83294.0,83293.0,0.1200797]
[1741537710532,0.0948,83316.0,83293.0,0.1200797]
[1741537710533,0.03066667,83316.0,83315.0,0.120048]
[1741537710730,0.46033147,83330.0,83315.0,0.9732]
[1741537711042,0.04285749,83358.0,83329.0,0.7216]
[1741537711239,0.03066997,83373.0,83365.0,0.0599874]
[1741537711428,0.1199762,83365.0,83359.0,0.0974]
[1741537711634,0.1199762,83365.0,83361.0,0.00017998]
[1741537711635,0.1799709,83362.0,83361.0,0.00017998]
[1741537711941,0.119999,83349.0,83348.0,0.0017995]
[1741537712137,0.0974,83349.0,83332.0,0.3608]
[1741537712339,0.120022,83333.0,83332.0,0.3608]
[1741537712834,0.1200494,83314.0,83313.0,0.3608]
[1741537713142,0.0600213,83319.0,83313.0,0.3608]
[1741537713329,0.0898,83318.0,83317.0,0.1200451]
[1741537713735,0.0898,83318.0,83313.0,0.4208249]
[1741537713736,0.0898,83318.0,83313.0,0.3608]
[1741537713940,0.1200468,83316.0,83313.0,0.3608]
[1741537714248,0.0898,83315.0,83314.0,0.1200493]
[1741537714739,0.1200494,83314.0,83313.0,0.3608]
[1741537714942,0.18716,83315.0,83305.0,0.00017998]
[1741537715145,0.1200588,83308.0,83306.0,0.1200609]
[1741537715328,0.0600268,83311.0,83306.0,0.1200609]
[1741537715329,0.1939,83307.0,83306.0,0.1200609]
[1741537715530,0.3139595,83307.0,83306.0,0.1200609]
[1741537715829,0.1939,83307.0,83305.0,0.12024148]
[1741537716030,0.1200609,83306.0,83305.0,0.00017998]
[1741537716442,0.3139609,83306.0,83305.0,0.00017998]
[1741537716845,0.1939,83306.0,83287.0,0.21538609]
[1741537717136,0.1200869,83288.0,83287.0,0.21538609]
[1741537717331,0.1200836,83291.0,83287.0,0.21538609]
[1741537717534,0.1200831,83291.0,83289.0,0.1200849]
[1741537717835,0.0946,83290.0,83289.0,0.1200849]
[1741537719334,0.1200869,83288.0,83287.0,0.21358531]
[1741537719538,0.1200869,83288.0,83287.0,0.33367361]
[1741537719747,0.1200869,83288.0,83287.0,0.1200883]
[1741537720138,0.02910491,83289.0,83287.0,0.1200883]
[1741537720338,0.1200869,83288.0,83287.0,0.1200883]
[1741537720646,0.09,83288.0,83287.0,0.1200883]
[1741537722134,0.2100869,83288.0,83287.0,0.1200883]
[1741537723538,0.09,83288.0,83287.0,0.1200883]
[1741537723743,0.096,83297.0,83296.0,0.1200753]
[1741537723945,0.096,83297.0,83296.0,0.5781953]
[1741537724645,0.2160739,83297.0,83296.0,0.5781953]
[1741537725347,0.2160739,83297.0,83296.0,0.3608]
[1741537725534,0.0600376,83296.0,83287.0,0.6992264]
[1741537725733,0.0600403,83293.0,83292.0,0.0600393]
[1741537726251,0.1200826,83291.0,83290.0,0.0600414]
[1741537726444,0.09732,83295.0,83273.0,0.0600538]
[1741537726645,0.1200941,83283.0,83282.0,0.0975001]
[1741537726849,0.1200941,83283.0,83282.0,0.0001801]
[1741537727247,0.2125927,83284.0,83283.0,0.1200941]
[1741537727440,0.0925,83284.0,83283.0,0.1200941]
[1741537727947,0.0925,83284.0,83283.0,0.2088941]
[1741537728461,0.1200941,83283.0,83282.0,0.0001801]
[1741537728752,0.2125941,83283.0,83282.0,0.1202756]
[1741537729949,0.0925,83283.0,83282.0,0.1202756]
[1741537730545,0.0925,83283.0,83270.0,0.00180107]
[1741537730746,0.1201062,83277.0,83270.0,0.00180107]
[1741537730947,0.179,83276.0,83275.0,0.1201056]
[1741537731351,0.179,83276.0,83272.0,0.060055]
[1741537731550,0.0600548,83273.0,83270.0,0.00180107]
[1741537731853,0.1201114,83271.0,83270.0,0.00180107]
[1741537732047,0.1201114,83271.0,83270.0,0.12191387]
[1741537732853,0.1201114,83271.0,83270.0,0.00180107]
[1741537733150,0.0001801,83280.0,83279.0,0.1200999]
[1741537734442,0.0001801,83280.0,83279.0,0.2618999]
[1741537734850,0.0001801,83280.0,83279.0,0.2210999]
[1741537736356,0.3609801,83280.0,83278.0,0.09732]
[1741537736556,0.1962,83279.0,83278.0,0.2174199]
[1741537736757,0.3162999,83279.0,83278.0,0.2174199]
[1741537737255,0.3162999,83279.0,83278.0,0.09732]
[1741537737554,0.3162999,83279.0,83278.0,0.1201013]
[1741537738157,0.1962,83279.0,83278.0,0.1201013]
[1741537738956,0.3162999,83279.0,83278.0,0.1201013]
[1741537739958,0.1962,83279.0,83278.0,0.1201013]
[1741537741358,0.01126943,83303.0,83279.0,0.6004993]
[1741537741552,0.1009,83299.0,83298.0,0.1200725]
[1741537742466,0.01126943,83314.0,83313.0,0.1200508]
[1741537742660,0.1200494,83314.0,83313.0,0.1200494]
[1741537742861,0.3608,83315.0,83314.0,0.1200494]
[1741537743060,0.1200523,83313.0,83312.0,0.1200515]
[1741537743563,0.1200523,83313.0,83309.0,0.0600281]
[1741537743564,0.1200552,83310.0,83309.0,0.0600281]
[1741537743761,0.1599261,83312.0,83307.0,0.1200587]
[1741537743957,0.1200609,83308.0,83307.0,0.2401143]
[1741537744157,0.0999,83309.0,83307.0,0.1200556]
[1741537744361,0.219958,83308.0,83307.0,0.2401151]
[1741537744559,0.1200609,83306.0,83305.0,0.09732]
[1741537744758,0.580758,83308.0,83297.0,0.1200692]
[1741537744759,0.0600302,83307.0,83297.0,0.1200692]
[1741537745064,0.3608,83299.0,83290.0,0.0001801]
[1741537745366,0.1200826,83291.0,83290.0,0.2175412]
[1741537745562,0.1200781,83296.0,83295.0,0.1200753]
[1741537745764,0.1200782,83294.0,83293.0,0.35597552]
[1741537746154,0.1200826,83291.0,83290.0,0.0001801]
[1741537746353,0.1200854,83289.0,83288.0,0.27547063]
[1741537746558,0.4808854,83289.0,83288.0,0.27547063]
[1741537746763,0.27153073,83289.0,83288.0,0.27547063]
[1741537747156,0.39161613,83289.0,83288.0,0.27547063]
[1741537748660,0.39161613,83289.0,83280.0,0.0001801]
[1741537748864,0.480897,83281.0,83280.0,0.1202785]
[1741537749061,0.02314044,83296.0,83280.0,0.1202785]
[1741537749265,0.19158,83295.0,83294.0,0.1200782]
[1741537749663,0.19158,83295.0,83289.0,0.0994]
[1741537749964,0.19158,83295.0,83290.0,0.1200831]
[1741537750169,0.120084,83290.0,83289.0,0.0994]
[1741537750570,0.480884,83290.0,83289.0,0.0994]
[1741537750868,0.480884,83290.0,83280.0,0.0001801]
[1741537750869,0.120097,83281.0,83280.0,0.0001801]
[1741537751058,0.480897,83281.0,83280.0,0.0001801]
[1741537751261,0.1201128,83270.0,83269.0,0.21563129]
[1741537751665,0.4809128,83270.0,83269.0,0.21563129]
[1741537752169,0.5781928,83270.0,83269.0,0.21563129]
[1741537752567,0.9389928,83270.0,83269.0,0.21563129]
[1741537753372,1.0347928,83270.0,83269.0,0.21563129]
[1741537754173,1.0347928,83270.0,83261.0,0.0001801]
[1741537754373,0.1201244,83262.0,83261.0,0.0001801]
[1741537754675,0.2174044,83262.0,83261.0,0.0001801]
[1741537754973,0.6768044,83262.0,83261.0,0.0001801]
[1741537756477,0.01126943,83269.0,83268.0,0.1201157]
[1741537756774,0.3159943,83269.0,83268.0,0.1201157]
[1741537757278,0.19588,83269.0,83268.0,0.1201157]
[1741537757576,0.19588,83269.0,83268.0,0.2140157]
[1741537757775,0.3159943,83269.0,83268.0,0.2140157]
[1741537758274,0.09728,83269.0,83268.0,0.2140157]
[1741537758485,0.3608,83270.0,83269.0,0.1201143]
[1741537758688,0.3608,83270.0,83269.0,0.3118143]
[1741537759775,0.0983,83277.0,83276.0,0.1201042]
[1741537759975,0.0001801,83278.0,83276.0,0.1201042]
[1741537760174,0.03062555,83301.0,83277.0,0.28918]
[1741537760380,0.1801143,83299.0,83298.0,0.1200681]
[1741537760684,0.1885,83301.0,83300.0,0.1200696]
[1741537760884,0.3608,83302.0,83301.0,0.1200681]
[1741537761075,0.3608,83302.0,83301.0,0.2198681]
[1741537761385,0.4808667,83302.0,83301.0,0.2198681]
[1741537761979,0.1800915,83306.0,83305.0,0.1200609]
[1741537762483,0.0001801,83310.0,83305.0,0.2173009]
[1741537762676,0.0001801,83310.0,83309.0,0.1200566]
[1741537762876,0.1202353,83310.0,83309.0,0.1200566]
[1741537763082,0.1202353,83310.0,83309.0,0.2162566]
[1741537763783,0.0001801,83310.0,83309.0,0.2162566]
[1741537764082,0.1202353,83310.0,83309.0,0.2162566]
[1741537764278,0.0001801,83310.0,83309.0,0.2162566]
[1741537764478,0.1202353,83310.0,83309.0,0.5770566]
[1741537764874,0.1202353,83310.0,83309.0,0.4808566]
[1741537765079,0.1200638,83305.0,83304.0,0.1200627]
[1741537765485,0.3098638,83305.0,83304.0,0.1200627]
[1741537765885,0.3098638,83305.0,83304.0,0.2162627]
[1741537766083,0.3098638,83305.0,83293.0,0.1202572]
[1741537766084,0.1200782,83294.0,83293.0,0.1202572]
[1741537766388,0.1200782,83294.0,83293.0,0.2403363]
[1741537766983,0.09724,83304.0,83300.0,0.0600346]
[1741537767183,0.09724,83304.0,83294.0,0.1]
[1741537767484,0.1200782,83294.0,83293.0,0.1202592]
[1741537767687,0.1200782,83294.0,83293.0,0.0001801]
[1741537767889,0.1200782,83294.0,83293.0,0.1202598]
[1741537768190,0.0600362,83298.0,83293.0,0.1202598]
[1741537768191,0.00068,83299.0,83296.0,0.060037]
[1741537768395,0.09724,83308.0,83307.0,0.1200595]
[1741537768688,0.217298,83308.0,83307.0,0.1200595]
[1741537768886,0.120058,83308.0,83307.0,0.1200595]
[1741537769387,0.219758,83308.0,83307.0,0.1200595]
[1741537770186,0.0997,83308.0,83307.0,0.1200595]
[1741537770583,0.0001801,83310.0,83309.0,0.1200566]
[1741537771183,0.0001801,83310.0,83309.0,0.4808566]
[1741537772991,0.0972,83326.0,83325.0,0.1200336]
[1741537773291,0.0972,83334.0,83328.0,0.1200292]
[1741537773486,0.4808278,83329.0,83328.0,0.1200292]
[1741537773885,0.3608,83329.0,83323.0,0.095]
[1741537774193,0.1200324,83328.0,83327.0,0.1200292]
[1741537774702,0.1200321,83326.0,83325.0,0.217233]
[1741537774884,0.1200321,83326.0,83325.0,0.0972]
[1741537775393,0.1200393,83321.0,83320.0,0.1200391]
[1741537775593,0.1200422,83319.0,83318.0,0.0973801]
[1741537775891,0.1200422,83319.0,83318.0,0.0001801]
[1741537776094,0.1200523,83312.0,83302.0,0.1200666]
[1741537776290,0.5780123,83312.0,83304.0,0.1200624]
[1741537776490,0.5780123,83312.0,83291.0,0.30574]
[1741537776684,0.1200566,83309.0,83291.0,0.0943]
[1741537776882,0.1200811,83292.0,83291.0,0.2143826]
[1741537777088,0.1200811,83292.0,83291.0,0.0943]
[1741537777494,0.1200926,83284.0,83283.0,0.0001801]
[1741537777698,0.3608,83286.0,83285.0,0.1200912]
[1741537777891,0.1200869,83289.0,83287.0,0.0600435]
[1741537778086,0.2182869,83289.0,83288.0,0.120086]
[1741537778599,0.0982,83289.0,83288.0,0.1200869]
[1741537779396,0.2182854,83289.0,83288.0,0.1200869]
[1741537779787,0.0982,83289.0,83288.0,0.1200869]
[1741537780187,0.2182854,83289.0,83288.0,0.1200869]
[1741537781100,0.1200869,83288.0,83287.0,0.098]
[1741537781299,0.1200869,83288.0,83287.0,0.2180883]
[1741537782599,0.3608,83312.0,83287.0,0.098]
[1741537782896,0.3608,83312.0,83299.0,0.120071]
[1741537782897,0.0945,83303.0,83299.0,0.120071]
[1741537783197,0.2172232,83305.0,83299.0,0.120071]
[1741537783397,0.09716,83305.0,83299.0,0.120071]
[1741537783892,0.09716,83308.0,83299.0,0.120071]
[1741537784292,0.1200645,83304.0,83299.0,0.12897866]
[1741537784487,0.1202497,83300.0,83299.0,0.120071]
[1741537784892,0.1202497,83300.0,83299.0,0.213171]
[1741537785288,0.0001801,83300.0,83299.0,0.213171]
[1741537788991,0.09712,83315.0,83314.0,0.1200494]
[1741537789200,0.0955,83319.0,83316.0,0.1200436]
[1741537789500,0.1800475,83328.0,83327.0,0.1200278]
[1741537789999,0.0600147,83328.0,83327.0,0.1200278]
[1741537791290,0.1562147,83328.0,83327.0,0.1200278]
[1741537791495,0.0962,83328.0,83326.0,0.0918]
[1741537791803,0.0962,83328.0,83322.0,0.3608]
[1741537791804,0.1200408,83320.0,83319.0,0.0001801]
[1741537791999,0.4808408,83320.0,83319.0,0.0001801]
[1741537792697,0.6768408,83320.0,83319.0,0.0001801]
[1741537794296,0.0600268,83312.0,83307.0,0.1200562]
[1741537794496,0.1200558,83310.0,83309.0,0.1200552]
[1741537794905,0.1937,83310.0,83309.0,0.1200552]
[1741537795106,0.09712,83312.0,83311.0,0.1200537]
[1741537795302,0.0977,83317.0,83316.0,0.1200465]
[1741537797398,0.2177451,83317.0,83316.0,0.1200465]
[1741537797595,0.0977,83317.0,83315.0,0.091]
[1741537797799,0.1200537,83311.0,83310.0,0.2861338]
[1741537797995,0.1200537,83311.0,83310.0,0.3461595]
[1741537798810,0.0600261,83313.0,83312.0,0.1200523]
[1741537799008,0.0600246,83315.0,83310.0,0.1660855]
[1741537799213,0.0961,83314.0,83313.0,0.1200494]
[1741537799407,0.0961,83314.0,83313.0,0.4808494]
[1741537799804,0.0001801,83320.0,83319.0,0.1200422]
[1741537800715,0.1202209,83320.0,83319.0,0.1200422]
[1741537800909,0.0600228,83317.0,83313.0,0.3608]
[1741537801109,0.120058,83308.0,83307.0,0.2115595]
[1741537801407,0.29458,83316.0,83315.0,0.120048]
[1741537801713,0.1975,83316.0,83315.0,0.4898096]
[1741537801914,0.3175465,83316.0,83315.0,0.4898096]
[1741537802212,0.1975,83316.0,83315.0,0.4898096]
[1741537802513,0.3175465,83316.0,83315.0,0.120048]
[1741537803514,0.3175465,83316.0,83304.0,0.3608]
[1741537803515,0.1975,83316.0,83304.0,0.3608]
[1741537803715,0.317548,83316.0,83315.0,0.120048]
[1741537804108,0.317548,83316.0,83315.0,0.06597864]